fUST/lending_fUST_20240722
["ID","MTS","AMOUNT","RATE_DAILY","PERIOD"]
[332862412,1721595039484,-252.72559791,0.00013698,2]
[332862413,1721595039497,-247.27440209,0.00013698,2]
[332862414,1721595039506,-500.0,0.00013698,2]
[332862415,1721595039515,-500.0,0.00013698,2]
[332862416,1721595039524,-500.0,0.00013698,2]
[332862417,1721595039535,-500.0,0.00013698,2]
[332862418,1721595039555,-500.0,0.00013698,2]
[332862419,1721595039565,-500.0,0.00013698,2]
[332862420,1721595039575,-500.0,0.00013698,2]
[332862421,1721595039585,-500.0,0.00013698,2]
[332862422,1721595039595,-500.0,0.00013698,2]
[332862424,1721595039605,-500.0,0.00013698,2]
[332862425,1721595039615,-500.0,0.00013698,2]
[332862426,1721595039624,-500.0,0.00013698,2]
[332862427,1721595039634,-500.0,0.00013698,2]
[332862428,1721595039644,-500.0,0.00013698,2]
[332862429,1721595039655,-210.19334527,0.00013698,2]
[332862430,1721595039665,-500.0,0.00013698,2]
[332862431,1721595039675,-556.28,0.00013698,2]
[332862432,1721595039685,-500.0,0.00013698,2]
[332862433,1721595039695,-500.0,0.00013698,2]
[332862434,1721595039706,-500.0,0.00013698,2]
[332862435,1721595039716,-500.0,0.00013698,2]
[332862436,1721595039729,-421.02500052,0.00013698,2]
[332862438,1721595039742,-78.97499948,0.00013698,2]
[332862440,1721595039751,-500.0,0.00013698,2]
[332862442,1721595039761,-500.0,0.00013698,2]
[332862444,1721595039771,-331.66,0.00013698,2]
[332862446,1721595039781,-500.0,0.00013698,2]
[332862448,1721595039791,-500.0,0.00013698,2]
[332862450,1721595039800,-500.0,0.00013698,2]
[332862452,1721595039810,-500.0,0.00013698,2]
[332862454,1721595039819,-430.18,0.00013698,2]
[332862456,1721595039829,-500.0,0.00013698,2]
[332862458,1721595039839,-500.0,0.00013698,2]
[332862460,1721595039849,-500.0,0.00013698,2]
[332862462,1721595039858,-500.0,0.00013698,2]
[332862464,1721595039868,-500.0,0.00013698,2]
[332862466,1721595039877,-222.53,0.00013698,2]
[332862468,1721595039887,-500.0,0.00013698,2]
[332862470,1721595039896,-500.0,0.00013698,2]
[332862472,1721595039905,-500.0,0.00013698,2]
[332862474,1721595039914,-505.28008699,0.00013698,2]
[332862476,1721595039923,-500.0,0.00013698,2]
[332862478,1721595039933,-500.0,0.00013698,2]
[332862480,1721595039942,-502.85162254,0.00013698,2]
[332862482,1721595039952,-500.0,0.00013698,2]
[332862484,1721595039961,-502.03563683,0.00013698,2]
[332862486,1721595039970,-500.0,0.00013698,2]
[332862488,1721595039982,-500.0,0.00013698,2]
[332862490,1721595039991,-500.0,0.00013698,2]
[332862492,1721595040001,-500.0,0.00013698,2]
[332862494,1721595040011,-500.0,0.00013698,2]
[332862496,1721595040020,-500.0,0.00013698,2]
[332862498,1721595040030,-500.0,0.00013698,2]
[332862500,1721595040039,-510.65940313,0.00013698,2]
[332862502,1721595040050,-500.0,0.00013698,2]
[332862504,1721595040059,-500.0,0.00013698,2]
[332862506,1721595040069,-502.37731771,0.00013698,2]
[332862508,1721595040078,-500.0,0.00013698,2]
[332862510,1721595040088,-577.15,0.00013698,2]
[332862512,1721595040097,-366.61,0.00013698,2]
[332862514,1721595040107,-500.0,0.00013698,2]
[332862517,1721595040117,-510.62201301,0.00013698,2]
[332862519,1721595040128,-500.0,0.00013698,2]
[332862520,1721595040137,-500.0,0.00013698,2]
[332862522,1721595040147,-500.0,0.00013698,2]
[332862524,1721595040156,-430.77,0.00013698,2]
[332862526,1721595040165,-511.95798033,0.00013698,2]
[332862528,1721595040174,-500.0,0.00013698,2]
[332862530,1721595040183,-288.50329968,0.00013698,2]
[332862532,1721595040192,-500.0,0.00013698,2]
[332862534,1721595040203,-500.0,0.00013698,2]
[332862536,1721595040213,-500.0,0.00013698,2]
[332862538,1721595040228,-513.78623228,0.00013698,2]
[332862539,1721595040237,-500.0,0.00013698,2]
[332862541,1721595040247,-500.0,0.00013698,2]
[332862543,1721595040256,-500.0,0.00013698,2]
[332862544,1721595040266,-504.5624367,0.00013698,2]
[332862545,1721595040275,-500.0,0.00013698,2]
[332862546,1721595040284,-500.0,0.00013698,2]
[332862547,1721595040296,-500.0,0.00013698,2]
[332862548,1721595040306,-554.5,0.00013698,2]
[332862549,1721595040316,-501.97715973,0.00013698,2]
[332862550,1721595040325,-500.0,0.00013698,2]
[332862551,1721595040335,-500.0,0.00013698,2]
[332862552,1721595040344,-500.0,0.00013698,2]
[332862553,1721595040355,-500.0,0.00013698,2]
[332862554,1721595040365,-500.0,0.00013698,2]
[332862555,1721595040375,-500.0,0.00013698,2]
[332862556,1721595040386,-500.0,0.00013698,2]
[332862557,1721595040398,-435.93,0.00013698,2]
[332862558,1721595040410,-500.0,0.00013698,2]
[332862559,1721595040420,-500.0,0.00013698,2]
[332862560,1721595040430,-500.0,0.00013698,2]
[332862561,1721595040440,-500.0,0.00013698,2]
[332862562,1721595040451,-500.0,0.00013698,2]
[332862563,1721595040461,-500.0,0.00013698,2]
[332862564,1721595040473,-500.0,0.00013698,2]
[332862565,1721595040482,-500.0,0.00013698,2]
[332862566,1721595040492,-627.68,0.00013698,2]
[332862567,1721595040502,-327.41,0.00013698,2]
[332862568,1721595040512,-500.0,0.00013698,2]
[332862569,1721595040524,-500.0,0.00013698,2]
[332862570,1721595040535,-500.0,0.00013698,2]
[332862571,1721595040549,-500.0,0.00013698,2]
[332862572,1721595040560,-500.0,0.00013698,2]
[332862573,1721595040569,-500.0,0.00013698,2]
[332862574,1721595040581,-500.0,0.00013698,2]
[332862575,1721595040591,-500.0,0.00013698,2]
[332862576,1721595040600,-500.0,0.00013698,2]
[332862577,1721595040610,-500.0,0.00013698,2]
[332862578,1721595040621,-500.0,0.00013698,2]
[332862579,1721595040631,-152.01,0.00013698,2]
[332862580,1721595040643,-417.62,0.00013698,2]
[332862581,1721595040654,-318.39,0.00013698,2]
[332862582,1721595040665,-181.62960455,0.00013698,2]
[332862583,1721595040674,-500.0,0.00013698,2]
[332862584,1721595040684,-500.0,0.00013698,2]
[332862585,1721595040694,-500.0,0.00013698,2]
[332862586,1721595040704,-500.0,0.00013698,2]
[332862587,1721595040715,-500.0,0.00013698,2]
[332862588,1721595040726,-500.0,0.00013698,2]
[332862589,1721595040736,-500.0,0.00013698,2]
[332862590,1721595040746,-500.0,0.00013698,2]
[332862591,1721595040755,-500.0,0.00013698,2]
[332862592,1721595040764,-579.86,0.00013698,2]
[332862593,1721595040775,-545.09,0.00013698,2]
[332862594,1721595040784,-500.0,0.00013698,2]
[332862595,1721595040793,-500.0,0.00013698,2]
[332862596,1721595040803,-384.41689072,0.00013698,2]
[332862597,1721595040815,-500.0,0.00013698,2]
[332862598,1721595040825,-500.0,0.00013698,2]
[332862599,1721595040835,-582.74,0.00013698,2]
[332862600,1721595040845,-500.0,0.00013698,2]
[332862601,1721595040855,-500.0,0.00013698,2]
[332862602,1721595040867,-500.0,0.00013698,2]
[332862603,1721595040878,-500.0,0.00013698,2]
[332862604,1721595040888,-500.0,0.00013698,2]
[332862605,1721595040898,-500.0,0.00013698,2]
[332862606,1721595040909,-500.0,0.00013698,2]
[332862607,1721595040919,-500.0,0.00013698,2]
[332862608,1721595040929,-500.0,0.00013698,2]
[332862609,1721595040938,-500.0,0.00013698,2]
[332862610,1721595040947,-500.0,0.00013698,2]
[332862611,1721595040957,-309.48934258,0.00013698,2]
[332862612,1721595040966,-500.0,0.00013698,2]
[332862613,1721595040976,-500.0,0.00013698,2]
[332862614,1721595040985,-500.0,0.00013698,2]
[332862615,1721595040994,-500.0,0.00013698,2]
[332862616,1721595041003,-500.0,0.00013698,2]
[332862617,1721595041012,-432.29984313,0.00013698,2]
[332862618,1721595041027,-67.70015687,0.00013698,2]
[332862619,1721595041036,-500.0,0.00013698,2]
[332862620,1721595041045,-500.0,0.00013698,2]
[332862621,1721595041055,-500.0,0.00013698,2]
[332862622,1721595041065,-500.0,0.00013698,2]
[332862623,1721595041074,-502.38933794,0.00013698,2]
[332862624,1721595041084,-500.0,0.00013698,2]
[332862625,1721595041093,-500.0,0.00013698,2]
[332862626,1721595041104,-500.0,0.00013698,2]
[332862628,1721595041115,-565.6,0.00013698,2]
[332862630,1721595041124,-500.0,0.00013698,2]
[332862632,1721595041135,-504.0438917,0.00013698,2]
[332862633,1721595041146,-500.0,0.00013698,2]
[332862634,1721595041157,-500.0,0.00013698,2]
[332862636,1721595041167,-500.0,0.00013698,2]
[332862637,1721595041177,-500.0,0.00013698,2]
[332862638,1721595041186,-500.0,0.00013698,2]
[332862639,1721595041198,-500.0,0.00013698,2]
[332862640,1721595041209,-500.0,0.00013698,2]
[332862641,1721595041218,-500.0,0.00013698,2]
[332862642,1721595041232,-297.44087133,0.00013698,2]
[332862643,1721595041245,-202.55912867,0.00013698,2]
[332862644,1721595041254,-396.47351958,0.00013698,2]
[332862645,1721595041268,-103.52648042,0.00013698,2]
[332862646,1721595041278,-514.24216245,0.00013698,2]
[332862647,1721595041287,-505.89,0.00013698,2]
[332862648,1721595041297,-230.11590063,0.00013698,2]
[332862649,1721595041407,-207.45409937,0.00013698,2]
[332862650,1721595041417,-42.53892463,0.00013698,2]
[332862651,1721595041428,-457.46107537,0.00013698,2]
[332862652,1721595041437,-257.31973276,0.00013698,2]
[332862653,1721595041449,-242.68026724,0.00013698,2]
[332862654,1721595041458,-93.07440841,0.00013698,2]
[332862655,1721595041469,-297.58660151,0.00013698,2]
[332862656,1721595041479,-500.0,0.00013698,2]
[332862657,1721595041488,-500.0,0.00013698,2]
[332862658,1721595041498,-280.43116125,0.00013698,2]
[332862659,1721595041507,-500.0,0.00013698,2]
[332862660,1721595041516,-500.07291912,0.00013698,2]
[332862661,1721595041525,-500.0,0.00013698,2]
[332862662,1721595041538,-500.0,0.00013698,2]
[332862663,1721595041547,-500.0,0.00013698,2]
[332862664,1721595041556,-337.16,0.00013698,2]
[332862665,1721595041566,-500.0,0.00013698,2]
[332862666,1721595041575,-500.0,0.00013698,2]
[332862667,1721595041584,-500.0,0.00013698,2]
[332862668,1721595041593,-500.0,0.00013698,2]
[332862669,1721595041603,-500.27965624,0.00013698,2]
[332862670,1721595041613,-500.55108454,0.00013698,2]
[332862671,1721595041622,-500.0,0.00013698,2]
[332862672,1721595041631,-500.0,0.00013698,2]
[332862673,1721595041641,-500.0,0.00013698,2]
[332862674,1721595041650,-500.0,0.00013698,2]
[332862675,1721595041659,-500.0,0.00013698,2]
[332862676,1721595041668,-500.0,0.00013698,2]
[332862677,1721595041678,-500.0,0.00013698,2]
[332862678,1721595041687,-500.0,0.00013698,2]
[332862679,1721595041696,-500.0,0.00013698,2]
[332862680,1721595041706,-500.0,0.00013698,2]
[332862681,1721595041715,-500.0,0.00013698,2]
[332862682,1721595041730,-500.0,0.00013698,2]
[332862683,1721595041741,-287.8740586,0.00013698,2]
[332862684,1721595041751,-500.0,0.00013698,2]
[332862685,1721595041760,-43.35113779,0.00013698,2]
[332862686,1721595041773,-456.64886221,0.00013698,2]
[332862687,1721595041782,-500.0,0.00013698,2]
[332862688,1721595041792,-500.0,0.00013698,2]
[332862689,1721595041801,-175.72896542,0.00013698,2]
[332862690,1721595041811,-500.0,0.00013698,2]
[332862691,1721595041820,-500.0,0.00013698,2]
[332862692,1721595041830,-500.0,0.00013698,2]
[332862693,1721595041839,-500.0,0.00013698,2]
[332862694,1721595041849,-225.78,0.00013698,2]
[332862695,1721595041860,-500.0,0.00013698,2]
[332862696,1721595041870,-500.0,0.00013698,2]
[332862697,1721595041880,-172.13496854,0.00013698,2]
[332862698,1721595041890,-500.0,0.00013698,2]
[332862699,1721595041902,-500.0,0.00013698,2]
[332862700,1721595041915,-450.27438715,0.00013698,2]
[332862701,1721595041925,-326.86,0.00013698,2]
[332862702,1721595041937,-500.0,0.00013698,2]
[332862703,1721595041949,-500.0,0.00013698,2]
[332862704,1721595041959,-375.88,0.00013698,2]
[332862705,1721595041970,-500.0,0.00013698,2]
[332862706,1721595041982,-500.0,0.00013698,2]
[332862707,1721595041991,-500.0,0.00013698,2]
[332862708,1721595042000,-500.0,0.00013698,2]
[332862709,1721595042010,-500.0,0.00013698,2]
[332862710,1721595042019,-500.0,0.00013698,2]
[332862711,1721595042029,-500.0,0.00013698,2]
[332862712,1721595042041,-500.0,0.00013698,2]
[332862713,1721595042050,-513.67830037,0.00013698,2]
[332862714,1721595042060,-500.0,0.00013698,2]
[332862715,1721595042069,-500.0,0.00013698,2]
[332862716,1721595042079,-521.24,0.00013698,2]
[332862717,1721595042089,-500.0,0.00013698,2]
[332862718,1721595042098,-500.0,0.00013698,2]
[332862719,1721595042107,-500.0,0.00013698,2]
[332862720,1721595042116,-500.0,0.00013698,2]
[332862721,1721595042126,-500.0,0.00013698,2]
[332862722,1721595042135,-500.0,0.00013698,2]
[332862723,1721595042145,-500.0,0.00013698,2]
[332862724,1721595042154,-500.0,0.00013698,2]
[332862725,1721595042163,-422.54477689,0.00013698,2]
[332862726,1721595042172,-500.0,0.00013698,2]
[332862727,1721595042182,-500.0,0.00013698,2]
[332862728,1721595042192,-507.46979898,0.00013698,2]
[332862729,1721595042202,-500.83390528,0.00013698,2]
[332862730,1721595042211,-500.0,0.00013698,2]
[332862731,1721595042221,-500.0,0.00013698,2]
[332862732,1721595042233,-500.0,0.00013698,2]
[332862733,1721595042243,-525.49173652,0.00013698,2]
[332862734,1721595042253,-233.62,0.00013698,2]
[332862735,1721595042263,-500.0,0.00013698,2]
[332862736,1721595042272,-614.24581285,0.00013698,2]
[332862737,1721595042282,-500.0,0.00013698,2]
[332862738,1721595042291,-369.16634541,0.00013698,2]
[332862739,1721595042300,-500.0,0.00013698,2]
[332862740,1721595042310,-259.46392166,0.00013698,2]
[332862741,1721595042319,-544.31899911,0.00013698,2]
[332862743,1721595042328,-500.0,0.00013698,2]
[332862744,1721595042338,-183.65991652,0.00013698,2]
[332862745,1721595042347,-183.79994739,0.00013698,2]
[332862746,1721595042359,-316.20005261,0.00013698,2]
[332862747,1721595042368,-500.0,0.00013698,2]
[332862748,1721595042379,-500.0,0.00013698,2]
[332862749,1721595042388,-164.44125639,0.00013698,2]
[332862750,1721595042403,-335.55874361,0.00013698,2]
[332862751,1721595042413,-500.0,0.00013698,2]
[332862752,1721595042422,-206.95445454,0.00013698,2]
[332862754,1721595042431,-500.0,0.00013698,2]
[332862756,1721595042442,-500.0,0.00013698,2]
[332862757,1721595042453,-500.0,0.00013698,2]
[332862758,1721595042463,-500.0,0.00013698,2]
[332862759,1721595042475,-500.0,0.00013698,2]
[332862760,1721595042485,-500.0,0.00013698,2]
[332862761,1721595042494,-500.0,0.00013698,2]
[332862762,1721595042503,-500.0,0.00013698,2]
[332862764,1721595042512,-500.0,0.00013698,2]
[332862766,1721595042522,-568.24808173,0.00013698,2]
[332862768,1721595042532,-500.0,0.00013698,2]
[332862778,1721595042697,-157.14943285,0.00013698,2]
[332862779,1721595042706,-500.0,0.00013698,2]
[332862780,1721595042716,-156.27123201,0.00013698,2]
[332862781,1721595042728,-199.94485775,0.00013698,2]
[332862783,1721595042738,-500.0,0.00013698,2]
[332862785,1721595042748,-500.0,0.00013698,2]
[332862787,1721595042757,-500.0,0.00013698,2]
[332862789,1721595042766,-500.0,0.00013698,2]
[332862790,1721595042777,-500.0,0.00013698,2]
[332862791,1721595042786,-450.0,0.00013698,2]
[332862792,1721595042796,-500.0,0.00013698,2]
[332862793,1721595042805,-500.0,0.00013698,2]
[332862794,1721595042814,-500.0,0.00013698,2]
[332862795,1721595042824,-500.0,0.00013698,2]
[332862796,1721595042833,-500.0,0.00013698,2]
[332862797,1721595042843,-500.0,0.00013698,2]
[332862798,1721595042853,-500.0,0.00013698,2]
[332862799,1721595042862,-500.0,0.00013698,2]
[332862800,1721595042872,-500.0,0.00013698,2]
[332862801,1721595042881,-500.0,0.00013698,2]
[332862802,1721595042891,-500.0,0.00013698,2]
[332862803,1721595042900,-500.0,0.00013698,2]
[332862804,1721595042910,-500.0,0.00013698,2]
[332862806,1721595042919,-500.0,0.00013698,2]
[332862807,1721595042929,-500.0,0.00013698,2]
[332862809,1721595042939,-500.0,0.00013698,2]
[332862810,1721595042949,-355.08399358,0.00013698,2]
[332862811,1721595042962,-144.91600642,0.00013698,2]
[332862812,1721595042972,-563.3932499,0.00013698,2]
[332862814,1721595042983,-262.78079801,0.00013698,2]
[332862815,1721595042993,-1625.35355,0.00013699,2]
[332862816,1721595043003,-9308.8409744,0.00013699,2]
[332862817,1721595043012,-3000.0,0.00013699,2]
[332862818,1721595043022,-500.0,0.00013972,2]
[332862819,1721595043031,-500.0,0.00013972,2]
[332862821,1721595043041,-500.0,0.00013972,2]
[332862823,1721595043051,-500.0,0.00013972,2]
[332862824,1721595043060,-184.23,0.00013972,2]
[332862825,1721595043070,-500.0,0.00013972,2]
[332862826,1721595043080,-500.0,0.00013972,2]
[332862827,1721595043089,-500.0,0.00013972,2]
[332862828,1721595043098,-450.95,0.00013972,2]
[332862829,1721595043109,-500.0,0.00013972,2]
[332862830,1721595043118,-500.0,0.00013972,2]
[332862831,1721595043128,-500.0,0.00013972,2]
[332862832,1721595043138,-500.0,0.00013972,2]
[332862833,1721595043148,-411.76555051,0.00013972,2]
[332862834,1721595043157,-500.0,0.00013972,2]
[332862835,1721595043167,-500.0,0.00013972,2]
[332862836,1721595043177,-531.70213675,0.00013972,2]
[332862837,1721595043186,-156.28,0.00013972,2]
[332862838,1721595043196,-447.83,0.00013972,2]
[332862839,1721595043205,-500.0,0.00013972,2]
[332862840,1721595043215,-500.0,0.00013972,2]
[332862841,1721595043226,-500.0,0.00013972,2]
[332862842,1721595043236,-500.0,0.00013972,2]
[332862843,1721595043245,-500.0,0.00013972,2]
[332862844,1721595043257,-500.0,0.00013972,2]
[332862845,1721595043269,-500.0,0.00013972,2]
[332862846,1721595043278,-500.0,0.00013972,2]
[332862847,1721595043289,-500.0,0.00013972,2]
[332862848,1721595043300,-629.49,0.00013972,2]
[332862849,1721595043310,-374.31411848,0.00013972,2]
[332862850,1721595043319,-500.0,0.00013972,2]
[332862851,1721595043330,-500.0,0.00013972,2]
[332862852,1721595043341,-500.0,0.00013972,2]
[332862853,1721595043350,-500.0,0.00013972,2]
[332862854,1721595043361,-500.0,0.00013972,2]
[332862855,1721595043371,-500.0,0.00013972,2]
[332862856,1721595043380,-500.0,0.00013972,2]
[332862857,1721595043390,-289.11110902,0.00013972,2]
[332862858,1721595043400,-575.57,0.00013972,2]
[332862859,1721595043409,-238.47779164,0.00013972,2]
[332862860,1721595043419,-500.0,0.00013972,2]
[332862861,1721595043429,-521.74,0.00013972,2]
[332862862,1721595043439,-235.89,0.00013972,2]
[332862863,1721595043450,-500.70336209,0.00013972,2]
[332862864,1721595043461,-183.81,0.00013972,2]
[332862865,1721595043471,-500.0,0.00013972,2]
[332862866,1721595043486,-500.0,0.00013972,2]
[332862867,1721595043496,-500.0,0.00013972,2]
[332862868,1721595043506,-500.0,0.00013972,2]
[332862869,1721595043515,-629.06,0.00013972,2]
[332862870,1721595043525,-500.0,0.00013972,2]
[332862871,1721595043535,-614.25,0.00013972,2]
[332862872,1721595043548,-500.0,0.00013972,2]
[332862873,1721595043557,-500.0,0.00013972,2]
[332862874,1721595043567,-500.0,0.00013972,2]
[332862875,1721595043577,-500.0,0.00013972,2]
[332862876,1721595043586,-500.0,0.00013972,2]
[332862877,1721595043595,-500.0,0.00013972,2]
[332862878,1721595043605,-470.32,0.00013972,2]
[332862879,1721595043614,-353.88502298,0.00013972,2]
[332862880,1721595043626,-500.0,0.00013972,2]
[332862881,1721595043636,-330.35986295,0.00013972,2]
[332862882,1721595043646,-500.0,0.00013972,2]
[332862883,1721595043655,-500.0,0.00013972,2]
[332862884,1721595043664,-209.69,0.00013972,2]
[332862885,1721595043674,-500.0,0.00013972,2]
[332862886,1721595043683,-248.2,0.00013972,2]
[332862887,1721595043692,-500.0,0.00013972,2]
[332862888,1721595043701,-500.0,0.00013972,2]
[332862889,1721595043711,-464.08090274,0.00013972,2]
[332862890,1721595043720,-500.0,0.00013972,2]
[332862891,1721595043733,-377.65,0.00013972,2]
[332862892,1721595043743,-291.04,0.00013972,2]
[332862893,1721595043752,-518.63,0.00013972,2]
[332862894,1721595043761,-500.0,0.00013972,2]
[332862895,1721595043771,-500.0,0.00013972,2]
[332862896,1721595043781,-500.0,0.00013972,2]
[332862897,1721595043791,-240.89,0.00013972,2]
[332862898,1721595043801,-500.0,0.00013972,2]
[332862899,1721595043810,-500.0,0.00013972,2]
[332862900,1721595043820,-500.0,0.00013972,2]
[332862901,1721595043829,-2053.7326865,0.000141,2]
[332862902,1721595043839,-32294.21868,0.00014236,2]
[332862903,1721595043848,-444.5983193,0.00014245,2]
[332862904,1721595043857,-500.0,0.00014245,2]
[332862905,1721595043867,-500.0,0.00014246,2]
[332862906,1721595043876,-500.0,0.00014246,2]
[332862907,1721595043886,-500.0,0.00014246,2]
[332862908,1721595043895,-500.0,0.00014246,2]
[332862909,1721595043905,-500.0,0.00014246,2]
[332862910,1721595043915,-500.0,0.00014246,2]
[332862911,1721595043925,-500.0,0.00014246,2]
[332862912,1721595043934,-500.0,0.00014246,2]
[332862913,1721595043944,-500.0,0.00014246,2]
[332862914,1721595043953,-500.0,0.00014246,2]
[332862915,1721595043962,-500.0,0.00014246,2]
[332862916,1721595043971,-214.9,0.00014246,2]
[332862917,1721595043984,-500.0,0.00014246,2]
[332862918,1721595043995,-500.0,0.00014246,2]
[332862919,1721595044005,-500.0,0.00014246,2]
[332862920,1721595044014,-500.0,0.00014246,2]
[332862921,1721595044024,-344.2,0.00014246,2]
[332862922,1721595044033,-500.0,0.00014246,2]
[332862923,1721595044043,-614.82719603,0.00014246,2]
[332862924,1721595044053,-500.0,0.00014246,2]
[332862925,1721595044063,-500.0,0.00014246,2]
[332862926,1721595044073,-500.0,0.00014246,2]
[332862927,1721595044082,-500.0,0.00014246,2]
[332862928,1721595044092,-303.56,0.00014246,2]
[332862929,1721595044101,-551.5489165,0.00014246,2]
[332862930,1721595044111,-500.0,0.00014246,2]
[332862931,1721595044120,-500.0,0.00014246,2]
[332862932,1721595044129,-207.41,0.00014246,2]
[332862933,1721595044138,-500.0,0.00014246,2]
[332862934,1721595044148,-202.51,0.00014246,2]
[332862935,1721595044157,-187.5,0.00014247,2]
[332862936,1721595044166,-177.603925,0.00014334,2]
[332862937,1721595044176,-176.98705,0.00014334,2]
[332862938,1721595044186,-192.837292,0.00014334,2]
[332862939,1721595044195,-172.560724,0.00014334,2]
[332862940,1721595044204,-241.206393,0.00014334,2]
[332862941,1721595044214,-228.134489,0.00014334,2]
[332862942,1721595044225,-156.381407,0.00014334,2]
[332862943,1721595044237,-172.560724,0.00014513,2]
[332862944,1721595044246,-241.206393,0.00014513,2]
[332862945,1721595044255,-228.134489,0.00014513,2]
[332862946,1721595044265,-500.0,0.0001452,2]
[332862947,1721595044278,-186.28,0.0001452,2]
[332862948,1721595044287,-500.0,0.0001452,2]
[332862949,1721595044297,-500.0,0.0001452,2]
[332862950,1721595044306,-500.0,0.0001452,2]
[332862951,1721595044315,-500.0,0.0001452,2]
[332862952,1721595044324,-439.56,0.0001452,2]
[332862953,1721595044333,-500.0,0.0001452,2]
[332862954,1721595044343,-500.0,0.0001452,2]
[332862955,1721595044353,-500.0,0.0001452,2]
[332862956,1721595044362,-296.16,0.0001452,2]
[332862957,1721595044372,-500.0,0.0001452,2]
[332862958,1721595044381,-500.0,0.0001452,2]
[332862959,1721595044391,-500.0,0.0001452,2]
[332862960,1721595044400,-500.0,0.0001452,2]
[332862961,1721595044409,-500.0,0.0001452,2]
[332862962,1721595044419,-551.05,0.0001452,2]
[332862963,1721595044428,-181.15,0.0001452,2]
[332862964,1721595044438,-500.0,0.0001452,2]
[332862965,1721595044447,-196.67,0.0001452,2]
[332862966,1721595044457,-352.57,0.0001452,2]
[332862967,1721595044466,-177.603925,0.00014573,2]
[332862968,1721595044479,-176.98705,0.00014573,2]
[332862969,1721595044490,-2053.7326865,0.00014603,2]
[332862970,1721595044499,-1519.35514429,0.0001469,2]
[332862971,1721595044508,-526.81626492,0.0001469,2]
[332862972,1721595044518,-154.74467129,0.0001469,2]
[332862973,1721595044528,-929.60114012,0.00014691,2]
[332862974,1721595044538,-491.97458914,0.00014691,2]
[332862975,1721595044551,-215.88591795,0.00014691,2]
[332862976,1721595044561,-279.24093716,0.00014691,2]
[332862977,1721595044571,-887.31675178,0.00014691,2]
[332862978,1721595044581,-461.86759732,0.00014691,2]
[332862979,1721595044591,-941.49835413,0.00014691,2]
[332862980,1721595044600,-188.02682589,0.00014691,2]
[332862981,1721595044610,-154.76014033,0.00014691,2]
[332862982,1721595044622,-259.71685342,0.00014691,2]
[332862983,1721595044632,-287.42676554,0.00014691,2]
[332862984,1721595044641,-172.560724,0.00014692,2]
[332862985,1721595044650,-241.206393,0.00014692,2]
[332862986,1721595044660,-228.134489,0.00014692,2]
[332862987,1721595044670,-192.837292,0.00014692,2]
[332862988,1721595044679,-500.0,0.00014794,2]
[332862989,1721595044689,-500.0,0.00014794,2]
[332862990,1721595044699,-500.0,0.00014794,2]
[332862991,1721595044708,-383.32,0.00014794,2]
[332862992,1721595044718,-559.1,0.00014794,2]
[332862993,1721595044731,-500.0,0.00014794,2]